bitfinex-derivatives/quotes_SOLF0:USTF0_20220109
["timestamp","ask_amount","ask_price","bid_price","bid_amount"]
[1641765378570,3.17447557,142.4,142.34,3.98769648]
[1641765378769,3.17447557,142.39,142.34,3.98769648]
[1641765379769,7.17447557,142.4,142.34,3.98769648]
[1641765380171,3.17447557,142.39,142.34,3.98769648]
[1641765380471,7.17447557,142.39,142.34,3.98769648]
[1641765380871,3.17447557,142.38,142.33,3.98769648]
[1641765382572,4.0,142.37,142.33,3.98769648]
[1641765382771,4.0,142.36,142.33,3.98769648]
[1641765382972,4.0,142.34,142.33,3.98769648]
[1641765383172,10.015,142.34,142.33,3.98769648]
[1641765383371,6.015,142.34,142.33,3.98769648]
[1641765383576,13.18947557,142.34,142.25,125.26063298]
[1641765383774,40.85426557,142.34,142.26,27.66479]
[1641765383973,37.67979,142.34,142.26,37.65064326]
[1641765384973,3.98907577,142.33,142.27,3.60697741]
[1641765385774,3.98907577,142.33,142.27,13.59283067]
[1641765386176,3.98907577,142.33,142.28,3.60697741]
[1641765387074,3.98907577,142.35,142.29,7.02444507]
[1641765387675,3.98907577,142.34,142.3,3.60697741]
[1641765388075,66.6788,142.36,142.3,3.60697741]
[1641765388275,27.66479,142.37,142.3,3.60697741]
[1641765388475,3.17420778,142.35,142.3,3.60697741]
[1641765388882,3.17420778,142.36,142.3,18.50155451]
[1641765389276,7.17420778,142.36,142.31,3.60697741]
[1641765389677,3.17420778,142.35,142.31,3.60697741]
[1641765390576,3.17420778,142.35,142.3,3.60697741]
[1641765390776,3.17420778,142.36,142.3,10.63092909]
[1641765390976,3.17420778,142.36,142.3,16.96392909]
[1641765391179,27.66479,142.37,142.31,14.8945771]
[1641765391583,3.17408372,142.36,142.32,3.60697741]
[1641765393079,7.17408372,142.36,142.32,3.60697741]
[1641765393378,3.17408372,142.36,142.32,3.60697741]
[1641765396382,3.17408372,142.36,142.33,2.51044048]
[1641765397184,3.17408372,142.36,142.34,3.60697741]
[1641765398287,3.17408372,142.36,142.32,3.60697741]
[1641765398487,12.33008372,142.36,142.32,3.60697741]
[1641765399188,3.17408372,142.35,142.33,2.51097126]
[1641765399587,3.17408372,142.35,142.34,3.60697741]
[1641765400688,3.17408372,142.35,142.33,3.60697741]
[1641765401087,3.17408372,142.35,142.34,3.60697741]
[1641765401487,3.17408372,142.35,142.3,3.60697741]
[1641765401689,3.17408372,142.35,142.3,28.51099598]
[1641765402189,3.17408372,142.35,142.3,18.50155451]
[1641765402388,3.17408372,142.35,142.31,6.11890393]
[1641765402789,3.17408372,142.35,142.32,7.60697741]
[1641765402990,14.8945771,142.4,142.32,14.62994251]
[1641765403190,14.8945771,142.4,142.33,10.98354439]
[1641765403589,14.8945771,142.4,142.33,7.37656698]
[1641765403789,4.0,142.42,142.33,7.37656698]
[1641765403989,87.7623771,142.43,142.35,27.66479]
[1641765404490,3.41738122,142.42,142.36,6.49934367]
[1641765404689,3.41738122,142.42,142.36,12.59334367]
[1641765404890,3.41738122,142.42,142.37,3.98741715]
[1641765405291,3.41738122,142.42,142.37,6.49934367]
[1641765405892,3.41738122,142.42,142.38,3.98741715]
[1641765406092,3.41738122,142.42,142.38,6.49934367]
[1641765406694,3.41738122,142.42,142.39,3.98741715]
[1641765407793,3.41738122,142.42,142.36,3.98741715]
[1641765408294,3.41738122,142.42,142.37,3.98741715]
[1641765408894,3.41738122,142.42,142.38,3.98741715]
[1641765409498,3.41738122,142.42,142.39,3.98741715]
[1641765409795,3.41738122,142.42,142.38,2.51057417]
[1641765410495,3.41738122,142.42,142.39,3.60522524]
[1641765411299,3.41738122,142.42,142.37,3.60522524]
[1641765411496,3.41738122,142.42,142.34,42.5593671]
[1641765411995,3.41738122,142.42,142.35,3.92270075]
[1641765412196,3.41738122,142.42,142.35,6.43310973]
[1641765412795,3.41738122,142.42,142.36,6.43310973]
[1641765413197,3.41738122,142.42,142.36,15.10210973]
[1641765413397,3.41738122,142.42,142.37,3.92270075]
[1641765413996,3.41738122,142.42,142.37,6.43310973]
[1641765414398,7.41738122,142.42,142.37,6.43310973]
[1641765414598,4.0,142.41,142.38,3.92270075]
[1641765414998,35.08217122,142.4,142.33,14.8945771]
[1641765415399,1.756,142.39,142.33,14.8945771]
[1641765415598,1.756,142.39,142.34,4.0]
[1641765415799,85.5183771,142.43,142.34,4.0]
[1641765415998,83.7623771,142.43,142.34,32.669]
[1641765416199,83.7623771,142.43,142.35,5.61979843]
[1641765416399,83.7623771,142.43,142.35,7.37379843]
[1641765416602,3.98701294,142.42,142.36,3.38039195]
[1641765417901,3.98701294,142.42,142.37,2.51128783]
[1641765418100,3.98701294,142.42,142.37,8.65228783]
[1641765418300,3.98701294,142.42,142.38,3.38039195]
[1641765418501,3.98701294,142.42,142.38,5.89167978]
[1641765419100,3.98701294,142.42,142.39,3.38039195]
[1641765420103,3.98701294,142.42,142.38,3.38039195]
[1641765423406,3.98701294,142.42,142.38,5.13439195]
[1641765423707,3.98701294,142.43,142.38,5.13439195]
[1641765424107,3.98701294,142.43,142.39,3.38039195]
[1641765424309,3.98701294,142.43,142.39,5.89180969]
[1641765424908,3.98701294,142.43,142.4,3.38039195]
[1641765425108,3.98701294,142.43,142.4,11.45039195]
[1641765425409,3.98701294,142.43,142.4,13.96180969]
[1641765425810,3.98701294,142.43,142.41,3.38039195]
[1641765427110,3.98701294,142.43,142.39,3.38039195]
[1641765427611,3.98701294,142.43,142.38,3.38039195]
[1641765427811,3.98701294,142.43,142.4,3.38039195]
[1641765428011,3.98701294,142.43,142.4,11.42239195]
[1641765428413,3.98701294,142.43,142.4,8.042]
[1641765428814,3.98701294,142.43,142.41,3.38039195]
[1641765429515,3.98701294,142.43,142.39,3.38039195]
[1641765430015,3.98701294,142.44,142.39,3.38039195]
[1641765430217,3.98701294,142.44,142.39,12.54639195]
[1641765430815,3.98701294,142.44,142.4,3.38039195]
[1641765432417,3.98701294,142.44,142.41,2.51489961]
[1641765433419,3.98701294,142.44,142.38,27.66479]
[1641765434121,3.98701294,142.44,142.39,3.38043543]
[1641765434321,2.45881518,142.43,142.39,5.89582692]
[1641765434922,3.98701294,142.42,142.4,3.38043543]
[1641765435824,3.98701294,142.42,142.37,3.38043543]
[1641765436225,3.98701294,142.42,142.38,2.51553359]
[1641765436924,4.0,142.43,142.39,3.38043543]
[1641765437325,3.98701294,142.41,142.38,2.51553359]
[1641765437525,7.98701294,142.41,142.38,2.51553359]
[1641765437924,7.98701294,142.41,142.35,82.9823771]
[1641765438125,3.98701294,142.4,142.35,14.8945771]
[1641765438626,3.98701294,142.4,142.36,3.38106523]
[1641765439326,3.98701294,142.4,142.35,3.38106523]
[1641765439526,3.98701294,142.4,142.37,2.51552813]
[1641765439726,4.0,142.39,142.37,2.51552813]
[1641765439927,4.0,142.39,142.34,24.91897553]
[1641765440127,1.756,142.38,142.34,24.91897553]
[1641765440328,7.702,142.38,142.34,10.02439843]
[1641765440529,11.68901294,142.38,142.35,3.38153538]
[1641765440729,13.93301294,142.38,142.35,3.38153538]
[1641765440928,3.98701294,142.37,142.35,3.38153538]
[1641765441333,3.98701294,142.37,142.34,3.38153538]
[1641765442731,3.98701294,142.37,142.32,31.94169402]
[1641765442732,3.98701294,142.37,142.33,3.38153538]
[1641765445935,4.0,142.35,142.33,3.38153538]
[1641765446137,4.0,142.34,142.29,39.30311155]
[1641765446337,4.0,142.32,142.29,39.30311155]
[1641765446535,4.0,142.31,142.29,39.30311155]
[1641765446735,4.0,142.31,142.29,18.59021155]
[1641765446936,4.0,142.31,142.24,59.05808696]
[1641765447136,4.0,142.3,142.22,7.02790077]
[1641765447336,27.66479,142.29,142.22,7.02790077]
[1641765447537,33.60679,142.29,142.25,2.70763277]
[1641765447736,37.60679,142.29,142.25,2.70763277]
[1641765447937,33.60679,142.29,142.25,2.70763277]
[1641765448142,3.99045663,142.28,142.22,2.70763277]
[1641765449239,7.99045663,142.28,142.22,2.70763277]
[1641765449440,3.99045663,142.28,142.22,2.70763277]
[1641765449840,3.99045663,142.27,142.22,2.70763277]
[1641765450840,37.60679,142.29,142.22,2.70763277]
[1641765450841,7.99045663,142.28,142.22,2.70763277]
[1641765451241,3.99045663,142.27,142.22,2.70763277]
[1641765451643,3.99045663,142.27,142.2,2.70763277]
[1641765452143,3.99045663,142.27,142.21,2.70763277]
[1641765452543,3.99045663,142.27,142.22,2.70763277]
[1641765452945,3.99045663,142.27,142.23,2.70763277]
[1641765453645,3.99045663,142.27,142.24,2.70763277]
[1641765454146,3.99045663,142.28,142.25,2.70763277]
[1641765454344,3.99045663,142.26,142.25,2.70763277]
[1641765455146,3.99045663,142.28,142.25,2.70763277]
[1641765455847,3.99045663,142.28,142.26,2.70763277]
[1641765456448,3.99045663,142.28,142.24,5.86]
[1641765457150,3.99045663,142.28,142.25,2.48210664]
[1641765459155,3.99045663,142.28,142.25,8.58910664]
[1641765459354,3.99045663,142.28,142.25,6.107]
[1641765459756,3.99045663,142.28,142.26,2.48210664]
[1641765462662,5.74645663,142.28,142.26,2.48210664]
[1641765462962,5.74645663,142.28,142.23,2.48210664]
[1641765463162,3.99045663,142.27,142.18,34.69466698]
[1641765463362,73.55705663,142.27,142.18,34.69466698]
[1641765463562,73.55705663,142.27,142.18,38.69466698]
[1641765463762,73.55705663,142.27,142.19,2.48276799]
[1641765464062,3.99045663,142.26,142.19,2.48276799]
[1641765464864,3.99045663,142.26,142.22,4.0]
[1641765465062,3.99045663,142.26,142.23,4.0]
[1641765465463,3.99045663,142.3,142.24,2.48276799]
[1641765469969,5.74645663,142.3,142.24,2.48276799]
[1641765470369,11.36846574,142.3,142.24,2.48276799]
[1641765470571,3.99045663,142.29,142.21,2.48276799]
[1641765470772,1.756,142.28,142.21,2.48276799]
[1641765471571,3.99045663,142.27,142.21,2.48276799]
[1641765476676,3.99045663,142.27,142.23,14.94469624]
[1641765476876,3.99045663,142.28,142.23,14.94469624]
[1641765477377,3.99045663,142.28,142.24,2.48276799]
[1641765477678,31.65524663,142.28,142.24,2.48276799]
[1641765478278,3.99045663,142.27,142.24,17.42746423]
[1641765478680,3.99045663,142.27,142.25,2.48276799]
[1641765480681,3.99045663,142.27,142.26,2.51603344]
[1641765481681,3.99045663,142.27,142.26,4.99880143]
[1641765481980,3.99045663,142.27,142.26,2.48276799]
[1641765482783,3.99045663,142.27,142.26,4.99880143]
[1641765492995,38.40479,142.28,142.26,8.99880143]
[1641765493195,14.94469624,142.31,142.27,31.02395168]
[1641765493395,14.94469624,142.31,142.29,4.0]
[1641765493597,0.00469624,142.32,142.3,4.0]
[1641765493795,18.37270996,142.36,142.31,24.0]
[1641765493997,10.51270996,142.36,142.32,7.37695991]
[1641765494194,10.51270996,142.36,142.32,14.50495991]
[1641765494394,10.51270996,142.36,142.32,8.884]
[1641765494596,90.72287696,142.4,142.32,8.884]
[1641765494597,4.0,142.39,142.32,8.884]
[1641765494796,3.98792947,142.35,142.33,6.07988484]
[1641765495297,3.98792947,142.38,142.34,3.5638514]
[1641765495496,1.756,142.37,142.34,3.5638514]
[1641765495696,4.0,142.39,142.34,3.5638514]
[1641765496400,4.0,142.39,142.3,3.5638514]
[1641765496605,2.45535145,142.38,142.3,13.57181346]
[1641765496900,6.45535145,142.38,142.3,13.57181346]
[1641765497098,1.756,142.37,142.3,13.57181346]
[1641765497299,4.0,142.34,142.27,27.66479]
[1641765497499,5.975,142.34,142.27,27.66479]
[1641765497699,5.975,142.34,142.28,3.56482233]
[1641765497899,33.63979,142.34,142.28,3.56482233]
[1641765498301,33.63979,142.34,142.29,2.50907636]
[1641765498899,33.63979,142.34,142.3,3.56482233]
[1641765500702,33.63979,142.34,142.26,3.56482233]
[1641765501304,33.63979,142.34,142.27,2.50780951]
[1641765501902,5.975,142.34,142.27,2.50780951]
[1641765502103,73.7802,142.36,142.28,3.56482233]
[1641765502303,1.756,142.35,142.28,3.56482233]
[1641765502904,1.756,142.35,142.29,2.50780951]
[1641765503303,1.756,142.35,142.3,3.56482233]
[1641765503503,5.756,142.35,142.3,3.56482233]
[1641765503704,1.756,142.35,142.3,3.56482233]
[1641765504005,27.66479,142.34,142.3,3.56482233]
[1641765504904,27.66479,142.34,142.27,3.56482233]
[1641765505506,34.82779,142.34,142.27,3.56482233]
[1641765505707,34.82779,142.34,142.28,2.50744691]
[1641765506308,7.163,142.34,142.29,3.56482233]
[1641765507208,7.163,142.34,142.28,3.56482233]
[1641765507408,103.20099,142.36,142.28,3.56482233]
[1641765507608,103.20099,142.36,142.27,3.56482233]
[1641765507808,111.11799,142.36,142.29,2.50758529]
[1641765508409,111.11799,142.36,142.3,3.56482233]
[1641765508812,111.11799,142.36,142.29,3.56482233]
[1641765509714,111.11799,142.36,142.27,3.56482233]
[1641765510616,3.98850989,142.35,142.28,2.50792024]
[1641765511018,3.98850989,142.35,142.29,3.56482233]
[1641765511919,3.98850989,142.35,142.29,9.61682233]
[1641765512320,3.98850989,142.35,142.3,3.56482233]
[1641765512722,3.98850989,142.35,142.3,6.0728987]
[1641765513122,3.98850989,142.35,142.31,3.56482233]
[1641765513922,3.98850989,142.35,142.3,3.56482233]
[1641765516526,3.98850989,142.35,142.31,2.5086134]
[1641765516927,3.98850989,142.35,142.32,3.56482233]
[1641765517828,3.98850989,142.35,142.3,3.56482233]
[1641765518627,3.98850989,142.35,142.31,2.50908988]
[1641765519229,3.98850989,142.35,142.28,4.0]
[1641765519727,7.98850989,142.35,142.29,3.56445899]
[1641765519928,4.0,142.33,142.29,3.56445899]
[1641765520129,4.0,142.32,142.29,2.51085625]
[1641765520334,4.0,142.31,142.29,2.51085625]
[1641765520531,7.98850989,142.31,142.23,39.68730475]
[1641765520731,5.756,142.3,142.23,39.68730475]
[1641765520931,14.169,142.3,142.22,7.02790077]
[1641765521133,18.15750989,142.3,142.24,3.56569922]
[1641765521532,3.98850989,142.29,142.21,3.56569922]
[1641765521930,31.65329989,142.29,142.21,3.56569922]
[1641765522532,3.98850989,142.28,142.21,3.56569922]
[1641765522931,3.98850989,142.28,142.21,13.57774909]
[1641765523329,3.98850989,142.28,142.22,3.56569922]
[1641765523530,7.98850989,142.28,142.22,3.56569922]
[1641765523730,4.0,142.27,142.22,3.56569922]
[1641765523930,27.66479,142.24,142.22,3.56569922]
[1641765524131,33.76879,142.24,142.22,3.56569922]
[1641765524331,3.98850989,142.23,142.22,3.56569922]
[1641765525133,9.091,142.23,142.17,14.90390918]
[1641765525734,3.98850989,142.22,142.18,3.56734849]
[1641765526132,3.98850989,142.22,142.17,11.03012408]
[1641765526535,3.98850989,142.22,142.18,4.0]
[1641765526733,3.98850989,142.23,142.18,14.73334849]
[1641765527134,3.98850989,142.27,142.19,3.56734849]
[1641765527535,3.98850989,142.27,142.19,18.47125767]
[1641765528040,3.98850989,142.27,142.2,3.56734849]
[1641765528937,3.98850989,142.27,142.19,3.56734849]
[1641765529139,4.0,142.26,142.19,3.56734849]
[1641765529337,1.756,142.26,142.19,3.56734849]
[1641765529740,9.99,142.26,142.19,3.56734849]
[1641765529939,31.65329989,142.25,142.19,3.56734849]
[1641765530342,3.98850989,142.24,142.22,4.0]
[1641765530542,71.14475558,142.31,142.23,4.0]
[1641765530742,6.74605558,142.31,142.23,4.0]
[1641765531540,1.756,142.32,142.22,11.106]
[1641765531739,9.62063739,142.34,142.22,11.106]
[1641765531740,1.756,142.33,142.22,11.106]
[1641765531940,29.42079,142.33,142.23,31.23066625]
[1641765532142,3.98979479,142.31,142.23,35.23066625]
[1641765532540,3.98979479,142.32,142.24,3.56587625]
[1641765539553,4.0,142.29,142.24,3.56587625]
[1641765539751,13.044,142.29,142.24,3.56587625]
[1641765540353,3.98979479,142.28,142.24,3.56587625]
[1641765540754,3.98979479,142.27,142.24,3.56587625]
[1641765541355,3.98979479,142.26,142.21,3.56587625]
[1641765541756,3.98979479,142.26,142.25,3.56587625]
[1641765542158,3.98979479,142.26,142.21,3.56587625]
[1641765542660,3.98979479,142.25,142.21,3.56587625]
[1641765543360,3.98979479,142.24,142.21,3.56587625]
[1641765544061,9.221,142.24,142.21,3.56587625]
[1641765544463,3.21788545,142.23,142.21,3.56587625]
[1641765545060,3.21788545,142.23,142.2,3.56587625]
[1641765546360,3.21788545,142.23,142.17,3.56587625]
[1641765546561,3.21788545,142.23,142.17,18.46978543]
[1641765546962,6.91,142.25,142.18,3.56587625]
[1641765547462,3.21788545,142.24,142.18,3.56587625]
[1641765548363,3.21788545,142.24,142.17,14.90390918]
[1641765548364,3.21788545,142.26,142.17,18.46978543]
[1641765548664,3.21788545,142.26,142.18,3.56587625]
[1641765549864,7.21788545,142.26,142.18,3.56587625]
[1641765550264,27.66479,142.24,142.18,3.56587625]
[1641765550764,3.21788545,142.23,142.18,3.56587625]
[1641765551966,3.21788545,142.26,142.18,3.56587625]
[1641765552167,3.21788545,142.26,142.18,12.13387625]
[1641765552369,3.21788545,142.26,142.18,54.70257543]
[1641765552669,3.21788545,142.26,142.19,7.56587625]
[1641765553069,3.21788545,142.26,142.2,3.56587625]
[1641765553370,3.21788545,142.26,142.2,18.46978543]
[1641765553871,3.21788545,142.28,142.21,3.56587625]
[1641765554068,3.21788545,142.28,142.21,26.54578543]
[1641765554472,3.21788545,142.28,142.21,54.21057543]
[1641765554770,3.21788545,142.28,142.22,3.56587625]
[1641765558275,3.21788545,142.28,142.22,10.31287625]
[1641765558876,3.21788545,142.28,142.23,3.56587625]
[1641765560277,3.21788545,142.28,142.22,3.56587625]
[1641765561278,3.21788545,142.28,142.19,18.90390918]
[1641765561279,3.21788545,142.28,142.2,3.56587625]
[1641765561479,3.21788545,142.28,142.23,2.51173192]
[1641765562278,3.21788545,142.28,142.24,3.56587625]
[1641765563079,3.21788545,142.28,142.22,3.56587625]
[1641765563280,7.21788545,142.28,142.22,3.56587625]
[1641765563579,3.21788545,142.27,142.21,3.56587625]
[1641765563780,4.97388545,142.27,142.23,2.51249378]
[1641765564382,27.66479,142.26,142.22,2.51249378]
[1641765564580,30.88267545,142.26,142.24,3.56587625]
[1641765564881,3.21788545,142.25,142.23,3.56587625]
[1641765565882,3.21788545,142.25,142.21,3.56587625]
[1641765566283,3.21788545,142.25,142.22,2.51345208]
[1641765566687,3.21788545,142.25,142.23,3.56587625]
[1641765567587,3.21788545,142.25,142.24,2.51345208]
[1641765568386,3.21788545,142.25,142.24,6.07932833]
[1641765568988,8.97388545,142.28,142.24,6.07932833]
[1641765569390,3.21788545,142.27,142.25,3.56587625]
[1641765570591,27.66479,142.26,142.22,3.56587625]
[1641765570990,3.21788545,142.25,142.22,3.56587625]
[1641765571189,3.21788545,142.25,142.23,2.51649861]
[1641765571992,3.21788545,142.25,142.24,3.56587625]
[1641765572592,3.21788545,142.25,142.24,6.08237486]
[1641765574195,3.21788545,142.25,142.24,12.47537486]
[1641765575598,3.21788545,142.25,142.24,8.90949861]
[1641765576400,3.21788545,142.25,142.24,6.393]
[1641765576602,3.21788545,142.25,142.19,24.91374961]
[1641765577004,3.21788545,142.25,142.19,27.43078427]
[1641765577206,3.21788545,142.25,142.2,3.99072795]
[1641765577704,3.21788545,142.25,142.21,2.51703466]
[1641765578504,3.21788545,142.25,142.22,3.99072795]
[1641765579106,3.21788545,142.25,142.23,2.51703466]
[1641765579907,3.21788545,142.25,142.24,3.99072795]
[1641765580306,3.21788545,142.28,142.24,3.99072795]
[1641765581407,4.97388545,142.28,142.24,3.99072795]
[1641765581607,4.97388545,142.28,142.22,3.99072795]
[1641765581809,2.46211735,142.27,142.22,3.99072795]
[1641765582009,5.6800028,142.27,142.22,3.99072795]
[1641765582408,3.21788545,142.27,142.22,3.99072795]
[1641765582708,3.21788545,142.26,142.23,2.51781724]
[1641765583308,3.21788545,142.28,142.24,3.99072795]
[1641765584008,2.46262442,142.27,142.24,3.99072795]
[1641765585009,3.21788545,142.26,142.22,3.99072795]
[1641765585411,3.21788545,142.26,142.25,2.51878248]
[1641765586110,3.21788545,142.26,142.23,2.51878248]
[1641765586911,3.21788545,142.26,142.2,27.45947952]
[1641765587211,18.12179463,142.28,142.2,27.45947952]
[1641765587412,3.21788545,142.25,142.21,3.99075607]
[1641765587811,9.089,142.26,142.21,3.99075607]
[1641765588310,3.21788545,142.25,142.22,2.51878248]
[1641765588711,3.21788545,142.25,142.23,3.99075607]
[1641765588914,30.88267545,142.25,142.23,3.99075607]
[1641765589512,3.21788545,142.24,142.23,3.99075607]
[1641765590113,3.21788545,142.24,142.2,3.99075607]
[1641765590513,3.21788545,142.24,142.23,2.51833319]
[1641765590914,3.21788545,142.24,142.23,6.50908926]
[1641765591313,3.21788545,142.24,142.23,3.99075607]
[1641765591914,3.21788545,142.27,142.22,3.99075607]
[1641765592416,3.21788545,142.24,142.23,6.50908926]
[1641765592715,3.21788545,142.26,142.23,6.50908926]
[1641765593116,3.21788545,142.28,142.24,3.99075607]
[1641765593315,3.21788545,142.28,142.24,15.93508926]
[1641765594017,2.46210334,142.27,142.25,3.99075607]
[1641765594516,3.21788545,142.26,142.25,3.99075607]
[1641765594919,3.21788545,142.26,142.22,3.99075607]
[1641765595718,3.21788545,142.26,142.23,2.51790657]
[1641765596518,3.21788545,142.28,142.24,3.99075607]
[1641765597021,2.46225089,142.27,142.24,3.99075607]
[1641765597620,3.21788545,142.26,142.22,3.99075607]
[1641765598520,3.21788545,142.26,142.23,2.51804721]
[1641765599425,3.21788545,142.28,142.23,2.51804721]
[1641765599624,1.756,142.27,142.23,2.51804721]
[1641765599825,3.21788545,142.25,142.23,2.51804721]
[1641765600225,3.21788545,142.26,142.23,2.51804721]
[1641765600428,3.21788545,142.26,142.2,27.45646334]
[1641765600930,2.46257624,142.25,142.2,2.51804721]
[1641765601128,2.46257624,142.25,142.21,3.99104914]
[1641765601729,3.21788545,142.24,142.21,3.99104914]
[1641765601928,3.21788545,142.24,142.22,2.51804721]
[1641765602831,3.21788545,142.24,142.18,42.56869918]
[1641765603429,3.21788545,142.24,142.19,2.51855031]
[1641765603630,3.21788545,142.24,142.19,6.50990156]
[1641765604330,3.21788545,142.24,142.2,2.51855031]
[1641765604531,3.21788545,142.24,142.2,6.50990156]
[1641765605332,3.21788545,142.24,142.21,3.99135125]
[1641765605531,3.21788545,142.24,142.21,12.09335125]
[1641765605732,3.21788545,142.24,142.22,4.0]
[1641765605931,14.90390918,142.27,142.22,4.0]
[1641765606331,14.90390918,142.27,142.22,7.99135125]
[1641765606532,2.46083096,142.27,142.23,2.51855031]
[1641765607534,2.57449695,142.26,142.24,3.9908135]
[1641765607836,2.57449695,142.26,142.24,15.8758135]
[1641765608037,16.65990918,142.31,142.25,2.51855031]
[1641765608234,14.90390918,142.31,142.25,2.51855031]
[1641765609039,41.44330475,142.35,142.28,4.0]
[1641765609241,14.92847652,142.32,142.3,11.02345835]
[1641765609436,12.33822359,142.34,142.31,27.66479]
[1641765609640,15.44755879,142.34,142.31,39.54479]
[1641765609837,15.44755879,142.34,142.31,35.54479]
[1641765610049,3.1093352,142.33,142.32,3.98913481]
[1641765610440,3.1093352,142.33,142.32,6.50768512]
[1641765611441,30.7741252,142.39,142.32,6.50768512]
[1641765611841,3.1093352,142.33,142.32,6.50768512]
[1641765612040,3.52e-05,142.33,142.32,6.50768512]
[1641765612241,27.66479,142.39,142.33,3.98913481]
[1641765612640,27.66479,142.39,142.32,2.51855031]
[1641765613443,1.5861366,142.38,142.33,3.98838961]
[1641765613643,1.5861366,142.38,142.33,7.98838961]
[1641765614244,1.5861366,142.38,142.33,4.0]
[1641765614654,1.5861366,142.4,142.34,3.98838961]
[1641765614945,1.5861366,142.37,142.34,11.86738961]
[1641765615347,1.5861366,142.36,142.35,3.98838961]
[1641765615948,1.5861366,142.36,142.34,7.879]
[1641765616748,1.5861366,142.35,142.34,7.879]
[1641765617148,1.5861366,142.35,142.34,11.86729974]
[1641765621254,1.5861366,142.35,142.34,3.98829974]
[1641765621454,38.7249266,142.35,142.26,4.0]
[1641765621654,40.4809266,142.35,142.26,4.0]
[1641765621853,40.4809266,142.35,142.25,72.18777495]
[1641765622054,4.0,142.33,142.25,41.43919245]
[1641765622254,42.89479,142.35,142.25,27.66479]
[1641765622455,4.0,142.34,142.25,27.66479]
[1641765623056,5.49518687,142.34,142.26,3.98977741]
[1641765623255,1.49518687,142.33,142.26,3.98977741]
[1641765623755,27.66479,142.32,142.26,3.98977741]
[1641765623955,1.756,142.31,142.26,3.98977741]
[1641765624356,3.25118687,142.31,142.26,3.98977741]
[1641765624556,1.49518687,142.3,142.26,3.98977741]
[1641765625156,1.49518687,142.29,142.24,3.98977741]
[1641765625556,1.49518687,142.28,142.23,3.98977741]
[1641765625955,4.0,142.26,142.23,3.98977741]
[1641765626158,1.49518687,142.27,142.23,3.98977741]
[1641765626357,7.25118687,142.27,142.23,3.98977741]
[1641765626557,1.49518687,142.25,142.21,3.98977741]
[1641765627056,1.49518687,142.24,142.19,3.98977741]
[1641765627456,1.49518687,142.24,142.22,3.98977741]
[1641765627655,31.66479,142.23,142.22,7.741e-05]
[1641765627856,38.95797687,142.23,142.2,7.741e-05]
[1641765628256,37.46279,142.23,142.16,7.0308655]
[1641765628457,41.46279,142.23,142.16,7.0308655]
[1641765629159,3.09241008,142.22,142.17,3.9919801]
[1641765630059,4.0,142.2,142.17,3.9919801]
[1641765630260,4.0,142.18,142.12,7.03259608]
[1641765630461,4.0,142.17,142.12,7.03259608]
[1641765630663,12.947,142.17,142.12,7.03259608]
[1641765631563,31.65781751,142.16,142.13,3.69522806]
[1641765632063,3.99302751,142.15,142.13,3.69522806]
[1641765633064,3.99302751,142.17,142.13,3.69522806]
[1641765633362,31.66479,142.18,142.13,3.69522806]
[1641765633763,3.89184434,142.17,142.13,3.69522806]
[1641765636268,7.89184434,142.17,142.13,3.69522806]
[1641765636669,3.89184434,142.17,142.13,3.69522806]
[1641765636871,3.89184434,142.16,142.13,3.69522806]
[1641765637570,3.89184434,142.17,142.13,3.69522806]
[1641765638370,3.89184434,142.19,142.13,3.69522806]
[1641765638771,3.89184434,142.2,142.13,3.69522806]
[1641765640474,3.89184434,142.2,142.16,7.0308655]
[1641765640675,1.758,142.26,142.19,11.02888873]
[1641765640877,1.756,142.29,142.23,7.02740689]
[1641765641075,1.756,142.3,142.23,13.16040689]
[1641765641479,1.756,142.3,142.23,6.133]
[1641765641875,29.42079,142.3,142.23,6.133]
[1641765642076,27.66479,142.3,142.24,3.99066877]
[1641765642376,3.12145703,142.29,142.24,3.99066877]
[1641765643378,4.87745703,142.29,142.24,3.99066877]
[1641765643778,3.12145703,142.28,142.23,3.99066877]
[1641765643980,12.16845703,142.28,142.23,3.99066877]
[1641765644780,3.12145703,142.27,142.23,3.99066877]
[1641765645481,3.12145703,142.28,142.23,3.99066877]
[1641765646484,3.12145703,142.29,142.23,3.99066877]
[1641765648183,4.0,142.28,142.23,3.99066877]
[1641765648385,1.756,142.27,142.23,3.99066877]
[1641765648784,3.12145703,142.26,142.23,3.99066877]
[1641765649184,3.12145703,142.26,142.2,3.99066877]
[1641765649685,3.12145703,142.28,142.19,7.02913577]
[1641765649883,3.12145703,142.28,142.21,27.66479]
[1641765650284,3.12145703,142.28,142.2,3.99066877]
[1641765650489,3.12145703,142.28,142.22,3.99066877]
[1641765650885,3.12145703,142.28,142.2,3.99066877]
[1641765651886,3.12145703,142.28,142.2,31.65545877]
[1641765652688,3.12145703,142.28,142.21,3.99066877]